[Event "December 12 Late 2023"]
[Site "https://www.chess.com"]
[Date "2023.12.12"]
[Round "6"]
[White "Omariev, Maksim"]
[Black "Stead, Kerry"]
[Result "1/2-1/2"]
[Board "116"]
[TimeControl "180+1"]
[WhiteFideId "4193423"]
[BlackFideId "3202577"]
[WhiteElo "2475"]
[BlackElo "2077"]
[WhiteTeam "RUS"]
[BlackTeam "AUS"]
[WhiteClock "0:00:03"]
[BlackClock "0:00:37"]

1. g4 {[%clk 0:03:00]}  d5 {[%clk 0:02:58]} 2. Bg2 {[%clk 0:03:01]}  Bxg4 {[%clk 0:02:57]} 3. c4 {[%clk 0:03:01]}  c6 {[%clk 0:02:55]} 4. Qb3 {[%clk 0:03:00]}  Qb6 {[%clk 0:02:34]} 5. Qxb6 {[%clk 0:02:54]}  axb6 {[%clk 0:02:33]} 6. cxd5 {[%clk 0:02:55]}  Nf6 {[%clk 0:02:29]} 7. Nc3 {[%clk 0:02:54]}  e6 {[%clk 0:02:24]} 8. h3 {[%clk 0:02:53]}  Bf5 {[%clk 0:02:22]} 9. e4 {[%clk 0:02:52]}  Bg6 {[%clk 0:02:22]} 10. dxe6 {[%clk 0:02:50]}  fxe6 {[%clk 0:02:22]} 11. Nge2 {[%clk 0:02:36]}  Nbd7 {[%clk 0:02:21]} 12. d4 {[%clk 0:02:33]}  e5 {[%clk 0:02:14]} 13. O-O {[%clk 0:02:26]}  Bd6 {[%clk 0:02:10]} 14. Be3 {[%clk 0:02:08]}  O-O {[%clk 0:02:08]} 15. Rad1 {[%clk 0:02:06]}  Rad8 {[%clk 0:01:59]} 16. dxe5 {[%clk 0:02:00]}  Nxe5 {[%clk 0:01:58]} 17. Bxb6 {[%clk 0:01:59]}  Rd7 {[%clk 0:01:53]} 18. b3 {[%clk 0:01:54]}  Bb4 {[%clk 0:01:39]} 19. f4 {[%clk 0:01:48]}  Nd3 {[%clk 0:01:29]} 20. e5 {[%clk 0:00:26]}  Nh5 {[%clk 0:01:27]} 21. Be4 {[%clk 0:00:10]}  Bxe4 {[%clk 0:01:25]} 22. Nxe4 {[%clk 0:00:11]}  Rd5 {[%clk 0:01:18]} 23. Be3 {[%clk 0:00:08]}  Be7 {[%clk 0:01:01]} 24. Kg2 {[%clk 0:00:08]}  Nb4 {[%clk 0:00:59]} 25. a3 {[%clk 0:00:05]}  Na6 {[%clk 0:00:56]} 26. b4 {[%clk 0:00:04]}  Nc7 {[%clk 0:00:54]} 27. Kf3 {[%clk 0:00:01]}  g6 {[%clk 0:00:53]} 28. Kg4 {[%clk 0:00:02]}  Ng7 {[%clk 0:00:50]} 29. Nc5 {[%clk 0:00:02]}  b6 {[%clk 0:00:48]} 30. Ne4 {[%clk 0:00:02]}  b5 {[%clk 0:00:47]} 31. Nc5 {[%clk 0:00:02]}  Nce6 {[%clk 0:00:46]} 32. Nxe6 {[%clk 0:00:02]}  Nxe6 {[%clk 0:00:46]} 33. Rxd5 {[%clk 0:00:02]}  cxd5 {[%clk 0:00:45]} 34. Rd1 {[%clk 0:00:03]}  Rd8 {[%clk 0:00:43]} 35. Nd4 {[%clk 0:00:04]}  Nxd4 {[%clk 0:00:43]} 36. Bxd4 {[%clk 0:00:05]}  Kf7 {[%clk 0:00:43]} 37. f5 {[%clk 0:00:04]}  gxf5+ {[%clk 0:00:42]} 38. Kxf5 {[%clk 0:00:05]}  Rg8 {[%clk 0:00:42]} 39. e6+ {[%clk 0:00:05]}  Ke8 {[%clk 0:00:42]} 40. Be5 {[%clk 0:00:05]}  Rg5+ {[%clk 0:00:42]} 41. Kf4 {[%clk 0:00:05]}  Rh5 {[%clk 0:00:42]} 42. Rxd5 {[%clk 0:00:05]}  Rxh3 {[%clk 0:00:41]} 43. Rxb5 {[%clk 0:00:06]}  Bd8 {[%clk 0:00:40]} 44. Rb8 {[%clk 0:00:06]}  Rh4+ {[%clk 0:00:39]} 45. Kf5 {[%clk 0:00:06]}  Rh5+ {[%clk 0:00:39]} 46. Ke4 {[%clk 0:00:06]}  Ke7 {[%clk 0:00:38]} 47. Rb7+ {[%clk 0:00:02]}  Ke8 {[%clk 0:00:38]} 48. Kd5 {[%clk 0:00:02]}  Bf6 {[%clk 0:00:37]} 49. Rb8+ {[%clk 0:00:02]}  Ke7 {[%clk 0:00:37]} 50. Rb7+ {[%clk 0:00:02]}  Ke8 {[%clk 0:00:37]} 51. Rb8+ {[%clk 0:00:03]}  Ke7 {[%clk 0:00:37]} 52. Rb7+ {[%clk 0:00:03]}  Ke8 {[%clk 0:00:37]} 1/2-1/2

[Event "December 12 Late 2023"]
[Site "https://www.chess.com"]
[Date "2023.12.12"]
[Round "6"]
[White "Cueto, Jonny"]
[Black "Kraiouchkine, Nikita"]
[Result "0-1"]
[Board "117"]
[TimeControl "180+1"]
[WhiteFideId "3300145"]
[BlackFideId "2607140"]
[WhiteElo "2228"]
[BlackElo "2462"]
[WhiteTeam "BOL"]
[BlackTeam "CAN"]
[WhiteClock "0:00:06"]
[BlackClock "0:00:09"]

1. d4 {[%clk 0:03:00]}  d5 {[%clk 0:02:59]} 2. Bf4 {[%clk 0:02:59]}  Nf6 {[%clk 0:02:57]} 3. e3 {[%clk 0:02:58]}  Bf5 {[%clk 0:02:55]} 4. c4 {[%clk 0:02:58]}  c6 {[%clk 0:02:52]} 5. Qb3 {[%clk 0:02:54]}  Qb6 {[%clk 0:02:50]} 6. Nc3 {[%clk 0:02:53]}  e6 {[%clk 0:02:41]} 7. c5 {[%clk 0:02:52]}  Qxb3 {[%clk 0:02:27]} 8. axb3 {[%clk 0:02:53]}  Nbd7 {[%clk 0:02:25]} 9. b4 {[%clk 0:02:46]}  Ne4 {[%clk 0:02:03]} 10. b5 {[%clk 0:02:43]}  Nxc3 {[%clk 0:01:53]} 11. bxc3 {[%clk 0:02:42]}  e5 {[%clk 0:01:53]} 12. Bg3 {[%clk 0:02:07]}  f6 {[%clk 0:01:38]} 13. bxc6 {[%clk 0:02:07]}  bxc6 {[%clk 0:01:38]} 14. c4 {[%clk 0:01:56]}  Be6 {[%clk 0:01:30]} 15. Nf3 {[%clk 0:01:40]}  dxc4 {[%clk 0:01:24]} 16. Nd2 {[%clk 0:01:39]}  c3 {[%clk 0:01:12]} 17. Nc4 {[%clk 0:01:39]}  exd4 {[%clk 0:00:53]} 18. exd4 {[%clk 0:01:38]}  Be7 {[%clk 0:00:41]} 19. Nd6+ {[%clk 0:01:10]}  Bxd6 {[%clk 0:00:32]} 20. Bxd6 {[%clk 0:01:11]}  Kf7 {[%clk 0:00:33]} 21. Ba6 {[%clk 0:01:09]}  Bd5 {[%clk 0:00:30]} 22. O-O {[%clk 0:01:08]}  Rae8 {[%clk 0:00:20]} 23. Bd3 {[%clk 0:01:01]}  Ra8 {[%clk 0:00:15]} 24. Ba6 {[%clk 0:01:01]}  Rae8 {[%clk 0:00:15]} 25. Bd3 {[%clk 0:01:01]}  Ra8 {[%clk 0:00:15]} 26. Bf5 {[%clk 0:00:55]}  Be6 {[%clk 0:00:12]} 27. Be4 {[%clk 0:00:52]}  Rhc8 {[%clk 0:00:12]} 28. Rfc1 {[%clk 0:00:51]}  f5 {[%clk 0:00:11]} 29. Bf3 {[%clk 0:00:51]}  a5 {[%clk 0:00:11]} 30. Rxc3 {[%clk 0:00:51]}  a4 {[%clk 0:00:11]} 31. Bd1 {[%clk 0:00:47]}  Ra6 {[%clk 0:00:07]} 32. Rxa4 {[%clk 0:00:40]}  Rxa4 {[%clk 0:00:07]} 33. Bxa4 {[%clk 0:00:41]}  Ra8 {[%clk 0:00:08]} 34. Ra3 {[%clk 0:00:36]}  Nf6 {[%clk 0:00:07]} 35. f3 {[%clk 0:00:33]}  Nd5 {[%clk 0:00:06]} 36. h4 {[%clk 0:00:11]}  Nb4 {[%clk 0:00:05]} 37. Bf4 {[%clk 0:00:10]}  Nc2 {[%clk 0:00:04]} 38. Ra2 {[%clk 0:00:06]}  Bxa2 {[%clk 0:00:04]} 39. Bxc2 {[%clk 0:00:05]}  Be6 {[%clk 0:00:03]} 40. Kh2 {[%clk 0:00:04]}  Ra2 {[%clk 0:00:03]} 41. Bd3 {[%clk 0:00:04]}  g6 {[%clk 0:00:03]} 42. Bf1 {[%clk 0:00:03]}  Ra4 {[%clk 0:00:02]} 43. Be5 {[%clk 0:00:03]}  Bd5 {[%clk 0:00:02]} 44. Bd3 {[%clk 0:00:03]}  f4 {[%clk 0:00:02]} 45. h5 {[%clk 0:00:03]}  gxh5 {[%clk 0:00:02]} 46. Bxh7 {[%clk 0:00:03]}  Ke6 {[%clk 0:00:03]} 47. Bg8+ {[%clk 0:00:03]}  Kd7 {[%clk 0:00:03]} 48. Bh7 {[%clk 0:00:04]}  Ra1 {[%clk 0:00:03]} 49. Bg6 {[%clk 0:00:04]}  Ra2 {[%clk 0:00:03]} 50. Bxh5 {[%clk 0:00:04]}  Ke6 {[%clk 0:00:03]} 51. Bg4+ {[%clk 0:00:04]}  Kf7 {[%clk 0:00:03]} 52. Kh3 {[%clk 0:00:05]}  Kg6 {[%clk 0:00:04]} 53. Bd7 {[%clk 0:00:05]}  Ra1 {[%clk 0:00:03]} 54. Kh2 {[%clk 0:00:05]}  Kg5 {[%clk 0:00:03]} 55. Bh3 {[%clk 0:00:03]}  Ra2 {[%clk 0:00:04]} 56. Bd6 {[%clk 0:00:04]}  Bxf3 {[%clk 0:00:04]} 57. Be7+ {[%clk 0:00:04]}  Kg6 {[%clk 0:00:03]} 58. Bd6 {[%clk 0:00:02]}  Bxg2 {[%clk 0:00:04]} 59. Bxg2 {[%clk 0:00:02]}  f3 {[%clk 0:00:04]} 60. Kg3 {[%clk 0:00:02]}  fxg2 {[%clk 0:00:04]} 61. Kh2 {[%clk 0:00:02]}  Kf5 {[%clk 0:00:05]} 62. Bg3 {[%clk 0:00:02]}  Ke6 {[%clk 0:00:04]} 63. Be5 {[%clk 0:00:03]}  Kd5 {[%clk 0:00:05]} 64. Kg1 {[%clk 0:00:03]}  Rd2 {[%clk 0:00:05]} 65. Bg7 {[%clk 0:00:03]}  Rxd4 {[%clk 0:00:06]} 66. Kxg2 {[%clk 0:00:02]}  Kxc5 {[%clk 0:00:06]} 67. Kg1 {[%clk 0:00:02]}  Kd5 {[%clk 0:00:06]} 68. Kf1 {[%clk 0:00:03]}  Re4 {[%clk 0:00:06]} 69. Kf2 {[%clk 0:00:03]}  c5 {[%clk 0:00:07]} 70. Kf3 {[%clk 0:00:03]}  Re8 {[%clk 0:00:07]} 71. Kf2 {[%clk 0:00:04]}  c4 {[%clk 0:00:08]} 72. Kf3 {[%clk 0:00:04]}  Kc5 {[%clk 0:00:08]} 73. Kf2 {[%clk 0:00:05]}  Kb4 {[%clk 0:00:08]} 74. Kf3 {[%clk 0:00:05]}  c3 {[%clk 0:00:09]} 75. Bxc3+ {[%clk 0:00:05]}  Kxc3 {[%clk 0:00:09]} 76. Kf4 {[%clk 0:00:06]}  Kd4 {[%clk 0:00:09]} 77. Kf5 {[%clk 0:00:06]}  Rf8+ {[%clk 0:00:09]} 0-1

[Event "December 12 Late 2023"]
[Site "https://www.chess.com"]
[Date "2023.12.12"]
[Round "6"]
[White "Clarke, Matthew"]
[Black "Kovalevsky, Stanislav"]
[Result "0-1"]
[Board "118"]
[TimeControl "180+1"]
[WhiteFideId "3227804"]
[BlackFideId "13508598"]
[WhiteElo "2217"]
[BlackElo "2461"]
[WhiteTeam "AUS"]
[BlackTeam "FID"]
[WhiteClock "0:00:00"]
[BlackClock "0:00:16"]

1. d4 {[%clk 0:03:00]}  d5 {[%clk 0:02:53]} 2. c4 {[%clk 0:03:01]}  c6 {[%clk 0:02:52]} 3. cxd5 {[%clk 0:03:01]}  cxd5 {[%clk 0:02:52]} 4. Bf4 {[%clk 0:03:01]}  Nc6 {[%clk 0:02:52]} 5. e3 {[%clk 0:03:01]}  a6 {[%clk 0:02:44]} 6. Bd3 {[%clk 0:02:57]}  Nf6 {[%clk 0:02:37]} 7. Nc3 {[%clk 0:02:43]}  Bg4 {[%clk 0:02:36]} 8. Nge2 {[%clk 0:02:43]}  e6 {[%clk 0:02:34]} 9. Rc1 {[%clk 0:02:39]}  Bd6 {[%clk 0:02:31]} 10. Bxd6 {[%clk 0:02:16]}  Qxd6 {[%clk 0:02:32]} 11. Qb3 {[%clk 0:02:16]}  O-O {[%clk 0:02:30]} 12. O-O {[%clk 0:01:49]}  e5 {[%clk 0:02:25]} 13. dxe5 {[%clk 0:01:32]}  Nxe5 {[%clk 0:02:26]} 14. Bb1 {[%clk 0:01:31]}  b5 {[%clk 0:02:18]} 15. h3 {[%clk 0:00:59]}  Bh5 {[%clk 0:01:49]} 16. Nf4 {[%clk 0:00:58]}  d4 {[%clk 0:01:37]} 17. Nxh5 {[%clk 0:00:53]}  Nxh5 {[%clk 0:01:35]} 18. Rfd1 {[%clk 0:00:44]}  d3 {[%clk 0:01:20]} 19. Ne4 {[%clk 0:00:32]}  Qg6 {[%clk 0:01:10]} 20. Bxd3 {[%clk 0:00:21]}  Rad8 {[%clk 0:00:57]} 21. Bb1 {[%clk 0:00:17]}  Nf6 {[%clk 0:00:28]} 22. Nd6 {[%clk 0:00:09]}  Nf3+ {[%clk 0:00:17]} 23. Kh1 {[%clk 0:00:00]}  Ng4 {[%clk 0:00:16]} 0-1

[Event "December 12 Late 2023"]
[Site "https://www.chess.com"]
[Date "2023.12.12"]
[Round "6"]
[White "Player, Edmund C"]
[Black "Powell, Paul"]
[Result "1-0"]
[Board "125"]
[TimeControl "180+1"]
[WhiteFideId "406520"]
[BlackFideId "2005840"]
[WhiteElo "2278"]
[BlackElo "2132"]
[WhiteTeam "ENG"]
[BlackTeam "USA"]
[WhiteClock "0:00:18"]
[BlackClock "0:00:00"]

1. Nc3 {[%clk 0:02:59]}  c5 {[%clk 0:02:53]} 2. e4 {[%clk 0:02:59]}  Nc6 {[%clk 0:02:52]} 3. f4 {[%clk 0:02:59]}  g6 {[%clk 0:02:52]} 4. Nf3 {[%clk 0:02:59]}  Bg7 {[%clk 0:02:52]} 5. Bc4 {[%clk 0:02:57]}  d6 {[%clk 0:02:47]} 6. O-O {[%clk 0:02:56]}  Nd4 {[%clk 0:02:36]} 7. d3 {[%clk 0:02:46]}  Nf6 {[%clk 0:02:29]} 8. e5 {[%clk 0:01:58]}  dxe5 {[%clk 0:01:59]} 9. fxe5 {[%clk 0:01:55]}  Nh5 {[%clk 0:01:37]} 10. Bxf7+ {[%clk 0:01:49]}  Kxf7 {[%clk 0:01:30]} 11. Nxd4+ {[%clk 0:01:42]}  Ke8 {[%clk 0:01:24]} 12. Nf3 {[%clk 0:01:34]}  Rf8 {[%clk 0:01:20]} 13. Be3 {[%clk 0:01:21]}  b6 {[%clk 0:00:58]} 14. Ng5 {[%clk 0:01:12]}  Qc7 {[%clk 0:00:21]} 15. Rxf8+ {[%clk 0:01:07]}  Bxf8 {[%clk 0:00:20]} 16. Qf3 {[%clk 0:01:01]}  Bb7 {[%clk 0:00:18]} 17. Qf7+ {[%clk 0:01:01]}  Kd7 {[%clk 0:00:18]} 18. Qe6+ {[%clk 0:00:53]}  Ke8 {[%clk 0:00:15]} 19. Rf1 {[%clk 0:00:52]}  Bg7 {[%clk 0:00:11]} 20. Qf7+ {[%clk 0:00:35]}  Kd7 {[%clk 0:00:09]} 21. Qe6+ {[%clk 0:00:20]}  Ke8 {[%clk 0:00:00]} 22. Nf7 {[%clk 0:00:18]} 1-0

[Event "December 12 Late 2023"]
[Site "https://www.chess.com"]
[Date "2023.12.12"]
[Round "6"]
[White "Biliy, Vadim"]
[Black "Harrington, Steve"]
[Result "1-0"]
[Board "126"]
[TimeControl "180+1"]
[WhiteFideId "14114127"]
[BlackFideId "2038730"]
[WhiteElo "2278"]
[BlackElo "2131"]
[WhiteTeam "UKR"]
[BlackTeam "USA"]
[WhiteClock "0:00:32"]
[BlackClock "0:00:00"]

1. d4 {[%clk 0:02:55]}  d5 {[%clk 0:02:58]} 2. Nf3 {[%clk 0:02:54]}  Nc6 {[%clk 0:02:58]} 3. e3 {[%clk 0:02:54]}  Bg4 {[%clk 0:02:56]} 4. Be2 {[%clk 0:02:46]}  e6 {[%clk 0:02:56]} 5. O-O {[%clk 0:02:44]}  Nf6 {[%clk 0:02:56]} 6. h3 {[%clk 0:02:44]}  Bh5 {[%clk 0:02:55]} 7. Nbd2 {[%clk 0:02:44]}  Be7 {[%clk 0:02:53]} 8. c4 {[%clk 0:02:44]}  O-O {[%clk 0:02:52]} 9. b3 {[%clk 0:02:40]}  Re8 {[%clk 0:02:52]} 10. Bb2 {[%clk 0:02:39]}  a5 {[%clk 0:02:52]} 11. Ne5 {[%clk 0:02:39]}  Bxe2 {[%clk 0:02:50]} 12. Qxe2 {[%clk 0:02:39]}  Nd7 {[%clk 0:02:48]} 13. cxd5 {[%clk 0:02:27]}  exd5 {[%clk 0:02:46]} 14. Nxc6 {[%clk 0:02:23]}  bxc6 {[%clk 0:02:47]} 15. Rfd1 {[%clk 0:02:17]}  a4 {[%clk 0:02:25]} 16. Rac1 {[%clk 0:02:15]}  c5 {[%clk 0:02:16]} 17. dxc5 {[%clk 0:02:12]}  Nxc5 {[%clk 0:02:11]} 18. b4 {[%clk 0:02:05]}  a3 {[%clk 0:01:57]} 19. Bxg7 {[%clk 0:02:04]}  Kxg7 {[%clk 0:01:51]} 20. bxc5 {[%clk 0:02:04]}  Bf6 {[%clk 0:01:46]} 21. Qg4+ {[%clk 0:01:57]}  Kh8 {[%clk 0:01:44]} 22. Nf3 {[%clk 0:01:51]}  c6 {[%clk 0:01:41]} 23. Nd4 {[%clk 0:01:48]}  Qc8 {[%clk 0:01:32]} 24. Qf4 {[%clk 0:01:37]}  Kg7 {[%clk 0:01:23]} 25. Nf5+ {[%clk 0:01:35]}  Kh8 {[%clk 0:01:10]} 26. Nd6 {[%clk 0:01:34]}  Qe6 {[%clk 0:01:10]} 27. Nxe8 {[%clk 0:01:29]}  Rxe8 {[%clk 0:01:11]} 28. Qd6 {[%clk 0:01:24]}  Bb2 {[%clk 0:00:51]} 29. Qxe6 {[%clk 0:01:21]}  fxe6 {[%clk 0:00:46]} 30. Rc2 {[%clk 0:01:20]}  e5 {[%clk 0:00:43]} 31. Rd3 {[%clk 0:01:12]}  Kg7 {[%clk 0:00:38]} 32. Rb3 {[%clk 0:01:12]}  Kf6 {[%clk 0:00:17]} 33. Rcxb2 {[%clk 0:01:08]}  axb2 {[%clk 0:00:18]} 34. Rxb2 {[%clk 0:01:08]}  Ra8 {[%clk 0:00:16]} 35. Rb6 {[%clk 0:01:07]}  Rxa2 {[%clk 0:00:16]} 36. Rxc6+ {[%clk 0:01:07]}  Ke7 {[%clk 0:00:15]} 37. g4 {[%clk 0:01:07]}  d4 {[%clk 0:00:13]} 38. exd4 {[%clk 0:01:06]}  exd4 {[%clk 0:00:14]} 39. Rd6 {[%clk 0:01:06]}  Rc2 {[%clk 0:00:11]} 40. Rxd4 {[%clk 0:01:05]}  Rxc5 {[%clk 0:00:12]} 41. Kg2 {[%clk 0:01:06]}  Kf6 {[%clk 0:00:12]} 42. Kg3 {[%clk 0:01:05]}  Kg6 {[%clk 0:00:12]} 43. Rd3 {[%clk 0:01:04]}  Rc4 {[%clk 0:00:12]} 44. f4 {[%clk 0:01:04]}  Ra4 {[%clk 0:00:12]} 45. Rd6+ {[%clk 0:00:59]}  Kg7 {[%clk 0:00:12]} 46. f5 {[%clk 0:00:59]}  h6 {[%clk 0:00:12]} 47. Rg6+ {[%clk 0:00:55]}  Kh7 {[%clk 0:00:10]} 48. Re6 {[%clk 0:00:54]}  Ra3+ {[%clk 0:00:09]} 49. Kh4 {[%clk 0:00:52]}  Rb3 {[%clk 0:00:09]} 50. Re7+ {[%clk 0:00:48]}  Kg8 {[%clk 0:00:09]} 51. Rd7 {[%clk 0:00:46]}  Ra3 {[%clk 0:00:08]} 52. Rd1 {[%clk 0:00:38]}  Rf3 {[%clk 0:00:07]} 53. Rg1 {[%clk 0:00:36]}  Kg7 {[%clk 0:00:06]} 54. Rg3 {[%clk 0:00:36]}  Rf4 {[%clk 0:00:05]} 55. Re3 {[%clk 0:00:32]}  Rf1 {[%clk 0:00:02]} 56. Kg3 {[%clk 0:00:32]}  Rg1+ {[%clk 0:00:00]} 57. Kf4 {[%clk 0:00:32]} 1-0

[Event "December 12 Late 2023"]
[Site "https://www.chess.com"]
[Date "2023.12.12"]
[Round "6"]
[White "Travadon, Loic"]
[Black "Golubenko, Valentina"]
[Result "0-1"]
[Board "127"]
[TimeControl "180+1"]
[WhiteFideId "26092131"]
[BlackFideId "4501993"]
[WhiteElo "2131"]
[BlackElo "2260"]
[WhiteTeam "FRA"]
[BlackTeam "CRO"]
[WhiteClock "0:00:00"]
[BlackClock "0:00:03"]

1. e4 {[%clk 0:03:00]}  e6 {[%clk 0:02:58]} 2. b3 {[%clk 0:03:00]}  d5 {[%clk 0:02:57]} 3. Bb2 {[%clk 0:02:59]}  dxe4 {[%clk 0:02:56]} 4. Nc3 {[%clk 0:02:59]}  Nf6 {[%clk 0:02:56]} 5. Qe2 {[%clk 0:03:00]}  Be7 {[%clk 0:02:54]} 6. Nxe4 {[%clk 0:02:59]}  O-O {[%clk 0:02:54]} 7. O-O-O {[%clk 0:02:57]}  a5 {[%clk 0:02:51]} 8. a4 {[%clk 0:02:56]}  b6 {[%clk 0:02:44]} 9. Qf3 {[%clk 0:02:52]}  Nxe4 {[%clk 0:02:32]} 10. Qxe4 {[%clk 0:02:50]}  Qd5 {[%clk 0:02:23]} 11. Qg4 {[%clk 0:02:38]}  e5 {[%clk 0:02:19]} 12. Qg3 {[%clk 0:02:38]}  Nc6 {[%clk 0:02:09]} 13. Be2 {[%clk 0:02:37]}  Nd4 {[%clk 0:02:06]} 14. Bf3 {[%clk 0:02:33]}  Qc5 {[%clk 0:01:41]} 15. Bxd4 {[%clk 0:01:52]}  Qxd4 {[%clk 0:01:34]} 16. c3 {[%clk 0:01:51]}  Qd3 {[%clk 0:01:01]} 17. Kb2 {[%clk 0:01:46]}  Bf5 {[%clk 0:00:54]} 18. Ne2 {[%clk 0:00:58]}  Qc2+ {[%clk 0:00:47]} 19. Ka1 {[%clk 0:00:58]}  Qxb3 {[%clk 0:00:45]} 20. d3 {[%clk 0:00:47]}  Qxa4+ {[%clk 0:00:36]} 21. Kb1 {[%clk 0:00:47]}  Ba3 {[%clk 0:00:27]} 22. Nc1 {[%clk 0:00:41]}  Bxc1 {[%clk 0:00:20]} 23. Kxc1 {[%clk 0:00:37]}  Qa1+ {[%clk 0:00:19]} 24. Kd2 {[%clk 0:00:37]}  Qb2+ {[%clk 0:00:18]} 25. Ke3 {[%clk 0:00:37]}  Qxc3 {[%clk 0:00:18]} 26. Bxa8 {[%clk 0:00:36]}  Qd4+ {[%clk 0:00:17]} 27. Ke2 {[%clk 0:00:37]}  Rxa8 {[%clk 0:00:17]} 28. Qe3 {[%clk 0:00:37]}  Qd6 {[%clk 0:00:15]} 29. d4 {[%clk 0:00:35]}  e4 {[%clk 0:00:15]} 30. h3 {[%clk 0:00:33]}  a4 {[%clk 0:00:14]} 31. g4 {[%clk 0:00:32]}  Bg6 {[%clk 0:00:14]} 32. h4 {[%clk 0:00:32]}  h5 {[%clk 0:00:14]} 33. g5 {[%clk 0:00:29]}  a3 {[%clk 0:00:14]} 34. Ra1 {[%clk 0:00:28]}  a2 {[%clk 0:00:14]} 35. Rhc1 {[%clk 0:00:28]}  Qd5 {[%clk 0:00:13]} 36. Rc2 {[%clk 0:00:27]}  Qb5+ {[%clk 0:00:13]} 37. Ke1 {[%clk 0:00:27]}  Qb1+ {[%clk 0:00:13]} 38. Rc1 {[%clk 0:00:27]}  Qb4+ {[%clk 0:00:13]} 39. Qd2 {[%clk 0:00:27]}  Qb5 {[%clk 0:00:13]} 40. Rxa2 {[%clk 0:00:25]}  Rd8 {[%clk 0:00:12]} 41. Rac2 {[%clk 0:00:24]}  Qf5 {[%clk 0:00:11]} 42. Rxc7 {[%clk 0:00:23]}  Qh3 {[%clk 0:00:11]} 43. Qe3 {[%clk 0:00:20]}  Qxh4 {[%clk 0:00:09]} 44. Rc8 {[%clk 0:00:19]}  Rxc8 {[%clk 0:00:08]} 45. Rxc8+ {[%clk 0:00:20]}  Kh7 {[%clk 0:00:09]} 46. Rb8 {[%clk 0:00:20]}  Qh1+ {[%clk 0:00:08]} 47. Ke2 {[%clk 0:00:20]}  Bf5 {[%clk 0:00:08]} 48. Rxb6 {[%clk 0:00:19]}  Bg4+ {[%clk 0:00:08]} 49. Kd2 {[%clk 0:00:19]}  Qd1+ {[%clk 0:00:09]} 50. Kc3 {[%clk 0:00:19]}  Qa1+ {[%clk 0:00:08]} 51. Rb2 {[%clk 0:00:18]}  Qa3+ {[%clk 0:00:07]} 52. Kc2 {[%clk 0:00:18]}  Qa4+ {[%clk 0:00:06]} 53. Kd2 {[%clk 0:00:18]}  Qa5+ {[%clk 0:00:06]} 54. Qc3 {[%clk 0:00:18]}  Qxg5+ {[%clk 0:00:05]} 55. Qe3 {[%clk 0:00:13]}  Qa5+ {[%clk 0:00:05]} 56. Kc2 {[%clk 0:00:10]}  Qc7+ {[%clk 0:00:03]} 57. Kb1 {[%clk 0:00:10]}  Qc6 {[%clk 0:00:02]} 58. Qd2 {[%clk 0:00:08]}  Bf5 {[%clk 0:00:01]} 59. Qf4 {[%clk 0:00:04]}  Qd5 {[%clk 0:00:01]} 60. Rd2 {[%clk 0:00:03]}  e3+ {[%clk 0:00:01]} 61. Qxf5+ {[%clk 0:00:03]}  Qxf5+ {[%clk 0:00:01]} 62. Kc1 {[%clk 0:00:02]}  exd2+ {[%clk 0:00:02]} 63. Kxd2 {[%clk 0:00:03]}  Qxf2+ {[%clk 0:00:02]} 64. Kc3 {[%clk 0:00:03]}  Qf3+ {[%clk 0:00:03]} 65. Kc4 {[%clk 0:00:00]}  Qe4 {[%clk 0:00:03]} 0-1

[Event "December 12 Late 2023"]
[Site "https://www.chess.com"]
[Date "2023.12.12"]
[Round "6"]
[White "Hernandez Bonilla, Amelia"]
[Black "youngdinousaur"]
[Result "0-1"]
[Board "130"]
[TimeControl "180+1"]
[WhiteFideId "3900193"]
[WhiteElo "2026"]
[BlackElo "2251"]
[WhiteTeam "VEN"]
[WhiteClock "0:01:20"]
[BlackClock "0:00:26"]

1. d4 {[%clk 0:02:59]}  Nf6 {[%clk 0:02:59]} 2. Bf4 {[%clk 0:02:59]}  e6 {[%clk 0:02:59]} 3. e3 {[%clk 0:02:58]}  d5 {[%clk 0:02:59]} 4. Nf3 {[%clk 0:02:57]}  Bd6 {[%clk 0:03:00]} 5. Ne5 {[%clk 0:02:58]}  c5 {[%clk 0:03:00]} 6. Bb5+ {[%clk 0:02:57]}  Bd7 {[%clk 0:02:36]} 7. Nxd7 {[%clk 0:02:55]}  Nbxd7 {[%clk 0:02:36]} 8. Bxd6 {[%clk 0:02:55]}  Qb6 {[%clk 0:02:26]} 9. Bxd7+ {[%clk 0:02:52]}  Nxd7 {[%clk 0:02:19]} 10. dxc5 {[%clk 0:02:51]}  Qxb2 {[%clk 0:02:18]} 11. Nd2 {[%clk 0:02:48]}  Rc8 {[%clk 0:02:14]} 12. Nb3 {[%clk 0:02:43]}  Qc3+ {[%clk 0:02:13]} 13. Qd2 {[%clk 0:02:43]}  Qf6 {[%clk 0:02:09]} 14. O-O {[%clk 0:02:42]}  h5 {[%clk 0:01:59]} 15. Rfe1 {[%clk 0:02:35]}  h4 {[%clk 0:01:57]} 16. h3 {[%clk 0:02:33]}  Rh5 {[%clk 0:01:55]} 17. e4 {[%clk 0:02:31]}  Kd8 {[%clk 0:01:36]} 18. Rad1 {[%clk 0:02:27]}  Rc6 {[%clk 0:01:28]} 19. Qa5+ {[%clk 0:02:23]}  Ke8 {[%clk 0:01:19]} 20. exd5 {[%clk 0:02:20]}  Rc8 {[%clk 0:01:15]} 21. dxe6 {[%clk 0:02:17]}  fxe6 {[%clk 0:01:15]} 22. Qxa7 {[%clk 0:02:10]}  Rg5 {[%clk 0:01:07]} 23. Qxb7 {[%clk 0:02:09]}  Rd8 {[%clk 0:01:06]} 24. Nd4 {[%clk 0:01:59]}  e5 {[%clk 0:01:01]} 25. Nc6 {[%clk 0:01:39]}  Qf3 {[%clk 0:00:27]} 26. Nxd8 {[%clk 0:01:22]}  Rxg2+ {[%clk 0:00:26]} 27. Kh1 {[%clk 0:01:20]}  Qxh3# {[%clk 0:00:26]} 0-1

[Event "December 12 Late 2023"]
[Site "https://www.chess.com"]
[Date "2023.12.12"]
[Round "6"]
[White "Erece, Ece Alkim"]
[Black "Desideri, Ricardo Maruchi"]
[Result "1-0"]
[Board "131"]
[TimeControl "180+1"]
[WhiteFideId "6346006"]
[BlackFideId "2110440"]
[WhiteElo "2245"]
[BlackElo "2015"]
[WhiteTeam "TUR"]
[BlackTeam "BRA"]
[WhiteClock "0:00:03"]
[BlackClock "0:00:13"]

1. e4 {[%clk 0:02:55]}  c5 {[%clk 0:02:58]} 2. Nf3 {[%clk 0:02:55]}  d6 {[%clk 0:02:57]} 3. d4 {[%clk 0:02:55]}  cxd4 {[%clk 0:02:53]} 4. Nxd4 {[%clk 0:02:56]}  Nf6 {[%clk 0:02:52]} 5. Nc3 {[%clk 0:02:57]}  a6 {[%clk 0:02:50]} 6. Bg5 {[%clk 0:02:57]}  Nbd7 {[%clk 0:02:48]} 7. f4 {[%clk 0:02:57]}  e6 {[%clk 0:02:46]} 8. Qf3 {[%clk 0:02:57]}  h6 {[%clk 0:02:46]} 9. Bxf6 {[%clk 0:02:52]}  Nxf6 {[%clk 0:02:45]} 10. O-O-O {[%clk 0:02:48]}  Qc7 {[%clk 0:02:42]} 11. Bd3 {[%clk 0:02:42]}  Be7 {[%clk 0:02:41]} 12. Rhe1 {[%clk 0:02:38]}  O-O {[%clk 0:02:40]} 13. e5 {[%clk 0:02:38]}  Nd5 {[%clk 0:02:30]} 14. Nxd5 {[%clk 0:02:34]}  exd5 {[%clk 0:02:30]} 15. Qxd5 {[%clk 0:02:25]}  dxe5 {[%clk 0:02:28]} 16. Rxe5 {[%clk 0:02:19]}  Bf6 {[%clk 0:02:25]} 17. Qe4 {[%clk 0:02:14]}  g6 {[%clk 0:02:19]} 18. Rh5 {[%clk 0:01:55]}  Bg4 {[%clk 0:02:14]} 19. Rxh6 {[%clk 0:01:50]}  Bxd1 {[%clk 0:02:12]} 20. Ne6 {[%clk 0:01:31]}  fxe6 {[%clk 0:01:08]} 21. Qxe6+ {[%clk 0:00:46]}  Qf7 {[%clk 0:00:58]} 22. Rxg6+ {[%clk 0:00:45]}  Bg7 {[%clk 0:00:59]} 23. Qh3 {[%clk 0:00:21]}  Qxf4+ {[%clk 0:00:26]} 24. Kxd1 {[%clk 0:00:13]}  Rad8 {[%clk 0:00:20]} 25. Rxg7+ {[%clk 0:00:04]}  Kxg7 {[%clk 0:00:20]} 26. Qh7+ {[%clk 0:00:04]}  Kf6 {[%clk 0:00:18]} 27. g3 {[%clk 0:00:04]}  Qf1+ {[%clk 0:00:16]} 28. Kd2 {[%clk 0:00:04]}  Qf2+ {[%clk 0:00:16]} 29. Kc3 {[%clk 0:00:04]}  Qc5+ {[%clk 0:00:16]} 30. Bc4 {[%clk 0:00:04]}  Qd4+ {[%clk 0:00:15]} 31. Kb3 {[%clk 0:00:04]}  b5 {[%clk 0:00:13]} 32. Qh6+ {[%clk 0:00:03]}  Ke5 {[%clk 0:00:13]} 33. Qe6# {[%clk 0:00:03]} 1-0